{"text_format":"1","workbook":"xlsx","n_sheets":3,"sheets":["Ülesanded","Uudised","Kaader"],"not_rendered":{"charts":0,"images":0,"macros":1,"external_links":1,"defined_names":5,"comments":0,"pivot_tables":0},"unopened":[],"bounds":{"document_bytes":16777216,"sheet_cells":100000,"rows_first":2000,"rows_last":500,"rows_between":2000,"halvings":0,"cell_chars":16384,"cell_head_chars":4096},"cells_cut":0,"cells_raw":0,"read":"whole","date_system":"1900"}

{"sheet":"Ülesanded","index":0,"n_rows":0,"n_cols":0,"rows_kept":0,"cut":false,"hidden":false,"merged":[]}

{"sheet":"Uudised","index":1,"n_rows":119,"n_cols":5,"rows_kept":119,"cut":false,"hidden":false,"merged":[]}
["Aeg","Uudis",null,null,"2024-10-16"]
["23:42:00","Selver x TalTech pääses CEV-i karikasarjas edasi"]
["23:07:00","Terras: Ungaris vaikselt mureneb ja ühel päeval leitakse demokraatlik lahendus",null,null,"Uudis"]
["23:06:00","Tallinnast on saamas Euroopa spordipealinn",null,null,"*Eesti*"]
["22:39:00","Tartu alustas eurosarja kolm-null võiduga"]
["21:54:00","ETV spordisaade, 16. oktoober",null,null,"Uudis"]
["21:53:00","Ilm püsib päikeseline, tuul tõuseb",null,null,"\"Ringvaate\" stuudiosse jõudis Eesti kõige kallim elava kunstniku maal"]
["21:51:00","Aktuaalne kaamera kell 21:00",null,null,"Prantsusmaal tulevad jääle Eesti iluuisutipud"]
["21:40:00","Viipekeelsed uudised",null,null,"Eesti saatkond avas Washingtonis ettevõtluskeskuse"]
["21:27:00","Aiandusagronoom soovitab aiast lehed kindlasti ära koristada",null,null,"Apollo võtab üle Eesti viimase Forum Cinemas kino Viljandis"]
["21:18:00","Opositsiooni hinnangul on riigieelarve läbipaistmatu",null,null,"Eesti Naislaulu Seltsi esinaine: kummutame müüti, et naislaul on vaid \"kiremine\""]
["21:11:00","Pärnu Sadam ei võitnud eurosarjas ka esimest kodumängu",null,null,"Eesti treener juhendas Soome noortekoondise suurturniiri lävele"]
["21:11:00","ERR Ukrainas: kodumaa eest võitlevad meeste kõrval ka naised",null,null,"Eesti sangpommisportlased korjasid MM-il kamaluga medaleid"]
["20:55:00","\"Pealtnägija\": doktor Noormann 40 aastat hiljem",null,null,"Eesti teine reket lõpetas pika kaotusteseeria"]
["20:38:00","Õhkrelvast kuuli pähe saanud mehe juhtumi uurimine on tupikus",null,null,"Eesti toetab Euroopa Liidu rändereeglite karmistamist"]
["20:29:00","Amazon ostab osaluse tuumaenergeetikat arendavas firmas X-energy",null,null,"Kõige olulisem infoallikas on Eesti uudisteportaalid"]
["20:14:00","Aktuaalne kaamera kell 18:30",null,null,"Noored Eesti ratturid liituvad värskelt loodud Belgia tiimiga"]
["20:11:00","Kalev/Cramo sai eurosarjas suure võõrsilvõidu",null,null,"Eesti parim naiste rannavolleduo teeb debüüdi kõrgeima taseme turniiril"]
["20:05:00","Vaiko Eplik: Betti Alver oli geenius",null,null,"Selgus tiitlikaitsja Eesti koosseis naiste Balti turniiriks"]
["19:51:00","Dorothea Wierer jätkamisest: see polnud lihtne otsus",null,null,"Eesti kurlingu segavõistkond alistas MM-il Austria esinduse"]
["19:35:00","\"Ringvaate\" stuudiosse jõudis Eesti kõige kallim elava kunstniku maal",null,null,"PÖFF-il jõuab esmakordselt Eesti vaatajate ette Anna Hintsi lühifilm \"Pimeala\""]
["19:33:00","Rutte: NATO kaitseministrid arutavad Zelenski võiduplaani sel nädalal",null,null,"Eesti lasteraamatud valiti taas maailma parimate hulka"]
["19:06:00","Prokuratuur näeb välismaalastest kurjategijate varem vabastamises probleeme"]
["19:05:00","Hollase ja Remmelga eliitturniiri debüüt lõppes kaotusega"]
["18:54:00","Briti valitsus kavatseb kaalulangetusravimi toel tõsta tööhõivet"]
["18:50:00","Skulptor Allmägi ja maalikunstnik Piile avasid Tartu Kunstimajas ühisnäituse \"Sümbioos\""]
["18:49:00","ERSO \"Romantika\" kontserdisarja avab Peeter Vähi teose \"Blue Collage\" esmaettekanne"]
["18:47:00","Prantsusmaal tulevad jääle Eesti iluuisutipud"]
["18:44:00","Eesti saatkond avas Washingtonis ettevõtluskeskuse"]
["18:40:00","Päevakaja (16.10.2024 18:00:00)"]
["18:40:00","Ekspertide hinnangul ei taha Põhja-Korea palju sõdureid Venemaa eest sõtta saata"]
["18:40:00","Nordica peab leidma lahenduse tööta lennukite probleemile"]
["18:20:00","Aktuaalne kaamera kell 17:00"]
["18:13:00","Gerardo's Toys/Neemeco liikus kindla võiduga veerandfinaali"]
["17:33:00","Malõgina sai aasta ühe magusama võidu"]
["17:15:00","\"Kultuuristuudio. Arutelu\" küsib, kuidas jagada raha teatrite vahel õiglaselt"]
["17:00:00","NHL-is nähti väravavahi tabamust"]
["16:57:00","Kohus tegi Lemberi ja PRIA vaidluses vaheotsuse"]
["16:52:00","Apollo võtab üle Eesti viimase Forum Cinemas kino Viljandis"]
["16:48:00","Kapo: sideandmete pikale säilitamisele head alternatiivi pole"]
["16:48:00","Eesti Naislaulu Seltsi esinaine: kummutame müüti, et naislaul on vaid \"kiremine\""]
["16:35:00","Eesti treener juhendas Soome noortekoondise suurturniiri lävele"]
["16:27:00","EL-i riigid võivad rändepoliitika karmistamisel pöörata pilgu Assadi poole"]
["16:17:00","\"Pealtnägija\": kolm investeerimispettuse ohvrit räägivad oma loo"]
["16:15:00","Eesti sangpommisportlased korjasid MM-il kamaluga medaleid"]
["15:57:00","Riigikogu tunnistas krimmitatarlaste suurküüditamise genotsiidiks"]
["15:35:00","Eesti teine reket lõpetas pika kaotusteseeria"]
["15:30:00","Mitmed väliskapitalile kuuluvad kaubanduskeskused pannakse müüki"]
["15:30:00","Eesti toetab Euroopa Liidu rändereeglite karmistamist"]
["15:30:00","Ida-Virumaal hakatakse uurima keemiatööstuse mõju elanike tervisele"]
["15:25:00","Kapo peab sideandmetega tutvumise võimalust oluliseks"]
["15:20:00","Raadiouudised (16.10.2024 15:00:00)"]
["15:03:00","Uue telemaja ehitushankele tegi parima pakkumuse Nordecon AS"]
["14:56:00","USA future jazz kollektiiv Sungazer esineb taas Tallinnas"]
["14:56:00","Zelenski avaldas viiest punktist koosneva võiduplaani"]
["14:55:00","Tarmo Tamm hakkab üleminekufondist saadud toetuse abil puidutööstust rajama"]
["14:49:00","Mehhiko sai üle viie aasta taas USA-st jagu, Pochettino palub kannatust"]
["14:45:00","Kell 21.40 \"Esimeses stuudios\" Brüsseli debatt"]
["14:30:00","CNN: Iisraelil valmis plaan Iraani rünnakule vastamiseks"]
["14:25:00","Oliver Laas: asjad, seadmed ja nende parandamine"]
["14:25:00","Taaramäe lõpetas Hiinas ka teise etapi peagrupis"]
["14:20:00","Musk andis Trumpi kampaaniale 75 miljonit dollarit"]
["14:19:00","Kõige olulisem infoallikas on Eesti uudisteportaalid"]
["14:19:00","Usaldus riigikogu ja valitsuse vastu langes oluliselt"]
["14:05:00","Ilm püsib selge, öösel muutuvad teed libedaks"]
["13:55:00","Holstre saab pärimuste matkaraja"]
["13:55:00","Rootsi tõstab kaitsekulusid 2,6 protsenti SKT-st"]
["13:54:00","Andra Teede: \"Õnne 13\" Alma ja Laine ei vanane mitte kunagi"]
["13:47:00","Koduse korvpalliliiga tulevikutäht on ilmselt liitumas Kalev/Cramoga"]
["13:40:00","Zuga tantsijate uuslavastus \"Ilma\" kutsub üles positiivsele aktivismile"]
["13:33:00","Helikunsti- ja muusikafestival Üle Heli seob tänavu kokku heli ja kujutluse"]
["13:13:00","Eva Sepping filmist \"Rändajad\": tahtsin näidata elu Siberis võimalikultilusana"]
["13:09:00","Noored Eesti ratturid liituvad värskelt loodud Belgia tiimiga"]
["12:53:00","Akkermann: mõne ministeeriumi kärped on eelarves veel sisustamata"]
["12:47:00","Eesti parim naiste rannavolleduo teeb debüüdi kõrgeima taseme turniiril"]
["12:33:00","Hasso Krull: poliitikutel on võimalus midagi tegemata jätta, siis ei peaka hiljem kahetsema"]
["12:26:00","Arst: viirushooaeg on alanud, haigestumine kogub hoogu"]
["12:25:00","Raadiouudised (16.10.2024 12:00:00)"]
["12:18:00","Põlva Serviti alustab nädalavahetusel Hollandis eurohooaega"]
["12:08:00","Õpetaja läbipõlemisest: oma murega ei tohi jääda üksi"]
["12:04:00","Hiiumaa vald taotleb Suuremõisa lossi võõrandamist"]
["12:04:00","Ilm on täna päikeseline"]
["12:04:00","Sidefirmad ähvardavad üle vaadata sideandmete säilitamise tähtajad"]
["12:04:00","Raadiouudised (16.10.2024 09:00:00)"]
["11:51:00","Selgus tiitlikaitsja Eesti koosseis naiste Balti turniiriks"]
["11:38:00","Ka kiirelt kasvavad kuused võivad anda head ehituspuitu"]
["11:37:00","Deodorant pakub õhusaastes sudule konkurentsi"]
["11:28:00","Rahvusvaheline Energiaagentuur: maailm on elektriajastu lävel"]
["11:16:00","Eesti kurlingu segavõistkond alistas MM-il Austria esinduse"]
["11:06:00","Kaisa Selde: olen tajunud küll emaks saamise survet"]
["10:50:00","Kolmekäeline robotdirigent tegi inimestele tuule alla"]
["10:43:00","37-aastane Colombia rattalegend tahab saada jalgpalluriks"]
["10:38:00","Hõimupäevadel tuulutatakse muusika- ja teatriakadeemias Soome rahvarõivaid"]
["10:37:00","Retseptiravimite miinimumhind tõuseb tuleval aastal euro võrra"]
["10:21:00","PÖFF-il jõuab esmakordselt Eesti vaatajate ette Anna Hintsi lühifilm \"Pimeala\""]
["09:59:00","Inglismaa jalgpallikoondist hakkab esimest korda juhendama sakslane"]
["09:49:00","ERR-i teleuudised kell 9:00"]
["09:47:00","Andrus Kaarelson: kuhu \"julgeolekumaksu\" raha tegelikult läheb"]
["09:38:00","FT: EL ei loobu 2035. aastaks seatud bensiinimootoriga uute autode müügikeelust"]
["09:32:00","Kindel võit viis Hispaania Rahvuste liigas kaheksa parema sekka"]
["09:25:00","Gert Raudsep: me ei ole siin selleks, et tekki ainult enda peale tõmmata"]
["09:11:00","Tarmo Kurves: kogukonna toetuse kaudu tõuseb sotsiaalteenuste kvaliteet"]
["08:55:00","20/20 filmifestival võtab luubi alla draamat täis tummfilmid"]
["08:49:00","ERR-i teleuudised kell 7:00"]
["08:46:00","Messi säras valikmängus kübaratriki ja kahe väravasööduga"]
["08:33:00","Harris esitas majandusplaani mustanahaliste meeste toetuseks"]
["08:33:00","Eesti lasteraamatud valiti taas maailma parimate hulka"]
["08:14:00","Võrkpallikarikavõistlused algavad Võru klubide duelliga"]
["08:06:00","Sveta Grigorjeva: ma ei usu, et ma radikaalsust taga otsin"]
["07:49:00","Kantar Emor: Balti riikide elanikud eelistavad USA presidendina Harrist"]
["07:35:00","Australopiteekidel olid nüüdisinimlikud töömehekäed"]
["07:03:00","EL püüab tippkohtumisega veenda laheriike Venemaad isoleerima"]
["07:00:00","Otse kell 12: riigikogu infotunnis Läänemets, Hartman, Sikkut"]
["06:57:00","Riigieelarve eelnõu läbis riigikogus esimese lugemise"]
["06:44:00","Norstat: Keskerakond langes reitingutabelis neljandaks"]
["06:26:00","Hiiumaal kaalutakse Suuremõisa lossi munitsipaalomandisse taotlemist"]
["06:18:00","Läti on valdava osa piiritarast Venemaaga valmis saanud"]
["06:18:00","Ettevõtted: ärilistel eesmärkidel säilitaksime vähem sideandmeid"]
["05:46:00","Sõja 966. päev: Biden teatas uuest abipaketist Ukrainale"]

{"sheet":"Kaader","index":2,"n_rows":110,"n_cols":10,"rows_kept":110,"cut":false,"hidden":false,"merged":[]}
[]
[]
[null,"Nimi","Sugu","Sünniaeg","Kuu jnr","Kuu nimetus","Vanus","Osakond","Amet","Palk"]
[null,"Jaan Laubre","mees","1988-01-16",{"$f":"MONTH(D4)","v":1},{"$f":"PROPER(TEXT(D4,\"mmmm\"))","v":"Jaanuar"},{"$f":"INT((TODAY()-D4)/365.25)","v":36},"Finants","raamatupidaja",1450]
[null,"Evi Sarapik","naine","1958-01-06",1,"Jaanuar",66,"Finants","raamatupidaja",1200]
[null,"Malle Kivioja","naine","1981-02-03",2,"Veebruar",43,"Finants","juhataja",3000]
[null,"Faina Lepp","naine","1982-04-01",4,"Aprill",42,"Finants","jurist",1450]
[null,"Kristel Astok","naine","1969-05-09",5,"Mai",55,"Finants","raamatupidaja",1170]
[null,"Vilma Eesmaa","naine","1985-05-28",5,"Mai",39,"Finants","raamatupidaja",1220]
[null,"Ene Burmeister","naine","1982-08-21",8,"August",42,"Finants","raamatupidaja",1370]
[null,"Malle Ligi","naine","1967-10-03",10,"Oktoober",57,"Finants","jurist",1170]
[null,"Katy Veesimaa","naine","1975-10-17",10,"Oktoober",49,"Finants","referent",1280]
[null,null,null,null,null,null,{"$f":"SUBTOTAL(1,G4:G12)","v":47.666666666666664},"Finants Average",null,{"$f":"SUBTOTAL(1,J4:J12)","v":1478.8888888888889}]
[null,"Erki Arsenov","mees","1959-02-12",{"$f":"MONTH(D14)","v":2},{"$f":"PROPER(TEXT(D14,\"mmmm\"))","v":"Veebruar"},{"$f":"INT((TODAY()-D14)/365.25)","v":65},"Ladu","komplekteerija",1150]
[null,"Einar Laanepõld","mees","1972-02-12",2,"Veebruar",52,"Ladu","tööline",950]
[null,"Anton Meister","mees","1955-02-08",2,"Veebruar",69,"Ladu","juhataja",1450]
[null,"Selma Parre","naine","1979-03-20",3,"Märts",45,"Ladu","tööline",1370]
[null,"Airi Põld","naine","1969-04-10",4,"Aprill",55,"Ladu","komplekteerija",1250]
[null,"Karl Salu","mees","1960-04-19",4,"Aprill",64,"Ladu","dispetser",1150]
[null,"Tiina Markus","naine","1992-07-01",7,"Juuli",32,"Ladu","tööline",1100]
[null,"Kaivo Berk","mees","1955-10-19",10,"Oktoober",69,"Ladu","tööline",850]
[null,"Meelis Kalju","mees","1992-11-16",11,"November",31,"Ladu","tööline",1190]
[null,"Reijo Meigas","mees","1956-12-18",12,"Detsember",67,"Ladu","tööline",1100]
[null,null,null,null,null,null,{"$f":"SUBTOTAL(1,G14:G23)","v":54.9},"Ladu Average",null,{"$f":"SUBTOTAL(1,J14:J23)","v":1156}]
[null,"Laine Eek","naine","1993-03-11",{"$f":"MONTH(D25)","v":3},{"$f":"PROPER(TEXT(D25,\"mmmm\"))","v":"Märts"},{"$f":"INT((TODAY()-D25)/365.25)","v":31},"Majandus","sekretär",2420]
[null,"Annika Paju","naine","1991-03-18",3,"Märts",33,"Majandus","sekretär",1120]
[null,"Aasa Randla","naine","1952-06-15",6,"Juuni",72,"Majandus","koristaja",1020]
[null,"Tiina Toomsalu","naine","1957-07-22",7,"Juuli",67,"Majandus","koristaja",1320]
[null,"Mare Eesmaa","naine","1984-08-16",8,"August",40,"Majandus","juhataja",1160]
[null,"Evelin Põld","naine","1970-08-21",8,"August",54,"Majandus","sekretär",1070]
[null,"Mirja Bergmann","naine","1953-09-11",9,"September",71,"Majandus","koristaja",920]
[null,null,null,null,null,null,{"$f":"SUBTOTAL(1,G25:G31)","v":52.571428571428569},"Majandus Average",null,{"$f":"SUBTOTAL(1,J25:J31)","v":1290}]
[null,"Jaan Noormets","mees","1993-01-07",{"$f":"MONTH(D33)","v":1},{"$f":"PROPER(TEXT(D33,\"mmmm\"))","v":"Jaanuar"},{"$f":"INT((TODAY()-D33)/365.25)","v":31},"Müük","diiler",1220]
[null,"Helen Aigro","naine","1997-03-03",3,"Märts",27,"Müük","sekretär",970]
[null,"Jana Kaal","naine","1980-03-18",3,"Märts",44,"Müük","sekretär",1220]
[null,"Tarmo Müller","mees","1979-03-05",3,"Märts",45,"Müük","müügijuht",1020]
[null,"Aare Raudsepp","mees","1991-03-01",3,"Märts",33,"Müük","diiler",960]
[null,"Juulia Tubin","naine","1964-03-02",3,"Märts",60,"Müük","sekretär",1100]
[null,"Erika Bachmann","naine","1983-04-07",4,"Aprill",41,"Müük","müügijuht",1090]
[null,"Ene Elmik","naine","1983-04-24",4,"Aprill",41,"Müük","müügijuht",1400]
[null,"Kristjan Mägi","mees","1989-04-16",4,"Aprill",35,"Müük","diiler",1000]
[null,"Reijo Okspuu","mees","1992-04-15",4,"Aprill",32,"Müük","diiler",1240]
[null,"Faina Kukk","naine","1992-08-29",8,"August",32,"Müük","sekretär",930]
[null,"Erika Kasemets","naine","1997-11-26",11,"November",26,"Müük","sekretär",1310]
[null,"Hilja Raid","naine","1987-11-03",11,"November",36,"Müük","sekretär",1250]
[null,"Erno Salumets","mees","1981-12-17",12,"Detsember",42,"Müük","juhataja",1110]
[null,null,null,null,null,null,{"$f":"SUBTOTAL(1,G33:G46)","v":37.5},"Müük Average",null,{"$f":"SUBTOTAL(1,J33:J46)","v":1130}]
[null,"Aigi Härm","naine","1980-03-22",{"$f":"MONTH(D48)","v":3},{"$f":"PROPER(TEXT(D48,\"mmmm\"))","v":"Märts"},{"$f":"INT((TODAY()-D48)/365.25)","v":44},"Ost","sekretär",2200]
[null,"Sirje Härm","naine","1955-05-14",{"$f":"MONTH(D49)","v":5},{"$f":"PROPER(TEXT(D49,\"mmmm\"))","v":"Mai"},{"$f":"INT((TODAY()-D49)/365.25)","v":69},"Ost","sekretär",1500]
[null,"Aarne Mikson","mees","1984-09-01",{"$f":"MONTH(D50)","v":9},{"$f":"PROPER(TEXT(D50,\"mmmm\"))","v":"September"},{"$f":"INT((TODAY()-D50)/365.25)","v":40},"Ost","juhataja",1110]
[null,"Valve Mäesalu","naine","1970-09-01",{"$f":"MONTH(D51)","v":9},{"$f":"PROPER(TEXT(D51,\"mmmm\"))","v":"September"},{"$f":"INT((TODAY()-D51)/365.25)","v":54},"Ost","sekretär",1210]
[null,"Maarja Ambros","naine","1977-11-13",{"$f":"MONTH(D52)","v":11},{"$f":"PROPER(TEXT(D52,\"mmmm\"))","v":"November"},{"$f":"INT((TODAY()-D52)/365.25)","v":46},"Ost","sekretär",1450]
[null,null,null,null,null,null,{"$f":"SUBTOTAL(1,G48:G52)","v":50.6},"Ost Average",null,{"$f":"SUBTOTAL(1,J48:J52)","v":1494}]
[null,"Leida Jaanus","naine","1955-01-15",{"$f":"MONTH(D54)","v":1},{"$f":"PROPER(TEXT(D54,\"mmmm\"))","v":"Jaanuar"},{"$f":"INT((TODAY()-D54)/365.25)","v":69},"Tootmine","tööline",1120]
[null,"Malle Põldmaa","naine","1975-01-06",1,"Jaanuar",49,"Tootmine","tööline",1120]
[null,"Madis Paulus","mees","1985-02-21",2,"Veebruar",39,"Tootmine","tööline",1250]
[null,"Irma Piirsalu","naine","1987-02-13",2,"Veebruar",37,"Tootmine","tööline",1160]
[null,"Aadu Heinlo","mees","1992-03-27",3,"Märts",32,"Tootmine","lukksepp",1520]
[null,"Andrus Koort","mees","1972-03-05",3,"Märts",52,"Tootmine","treial",1080]
[null,"Margus Maasalu","mees","1962-03-04",3,"Märts",62,"Tootmine","tööline",1400]
[null,"Madis Maasalu","mees","1955-03-11",3,"Märts",69,"Tootmine","tööline",1370]
[null,"Hanno Pajusaar","mees","1990-03-27",3,"Märts",34,"Tootmine","tööline",1390]
[null,"Einar Ehala","mees","1954-04-24",4,"Aprill",70,"Tootmine","treial",1180]
[null,"Aadu Elson","mees","1973-04-09",4,"Aprill",51,"Tootmine","tööline",1320]
[null,"Marko Erikson","mees","1953-04-06",4,"Aprill",71,"Tootmine","meister",2780]
[null,"Erna Eek","naine","1990-05-24",5,"Mai",34,"Tootmine","tööline",1350]
[null,"Argo Salu","mees","1960-05-29",5,"Mai",64,"Tootmine","tööline",1220]
[null,"Arnold Norak","mees","1990-06-29",6,"Juuni",34,"Tootmine","tööline",1240]
[null,"Eevald Parts","mees","1988-06-17",6,"Juuni",36,"Tootmine","lukksepp",1960]
[null,"Kaspar Veesimaa","mees","1965-06-11",6,"Juuni",59,"Tootmine","tööline",1160]
[null,"Kersti Miller","naine","1991-07-23",7,"Juuli",33,"Tootmine","tööline",1180]
[null,"Ahti Tubin","mees","1970-07-06",7,"Juuli",54,"Tootmine","treial",780]
[null,"Kristjan Jürimäe","mees","1981-08-04",8,"August",43,"Tootmine","lukksepp",1090]
[null,"Hendrik Kanter","mees","1954-09-01",9,"September",70,"Tootmine","juhataja",1250]
[null,"Riho Kuusk","mees","1952-09-14",9,"September",72,"Tootmine","tööline",1200]
[null,"Aare Marmor","mees","1957-09-23",9,"September",67,"Tootmine","meister",1150]
[null,"Kaivo Mets","mees","1973-09-01",9,"September",51,"Tootmine","meister",1080]
[null,"Reijo Muld","mees","1981-09-24",9,"September",43,"Tootmine","tööline",1310]
[null,"Meelis Petrov","mees","1992-09-21",9,"September",32,"Tootmine","tööline",1360]
[null,"Reijo Bauman","mees","1965-10-04",10,"Oktoober",59,"Tootmine","tööline",1150]
[null,"Olav Berk","mees","1950-10-04",10,"Oktoober",74,"Tootmine","tööline",930]
[null,"Erki Lepiksoo","mees","1981-10-31",10,"Oktoober",42,"Tootmine","treial",900]
[null,"Reijo Müürsepp","mees","1962-10-11",10,"Oktoober",62,"Tootmine","lukksepp",2290]
[null,"Arvi Väljas","mees","1976-10-05",10,"Oktoober",48,"Tootmine","tööline",1150]
[null,"Erki Ainsaar","mees","1975-11-12",11,"November",48,"Tootmine","lukksepp",1240]
[null,"Heli Lind","naine","1981-11-11",11,"November",42,"Tootmine","tööline",1090]
[null,"Raivo Lokk","mees","1991-11-15",11,"November",32,"Tootmine","tööline",1420]
[null,"Eino Luige","mees","1962-11-16",11,"November",61,"Tootmine","tööline",1100]
[null,"Kustav Salu","mees","1982-11-20",11,"November",41,"Tootmine","tööline",1250]
[null,"Karl Agur","mees","1994-12-21",12,"Detsember",29,"Tootmine","tööline",930]
[null,"Sirje Kreen","naine","1955-12-27",12,"Detsember",68,"Tootmine","tööline",1060]
[null,"Aarne Norak","mees","1975-12-07",12,"Detsember",48,"Tootmine","tööline",1010]
[null,null,null,null,null,null,{"$f":"SUBTOTAL(1,G54:G92)","v":50.794871794871796},"Tootmine Average",null,{"$f":"SUBTOTAL(1,J54:J92)","v":1270.2564102564102}]
[null,"Hanno Pedak","mees","1981-01-24",{"$f":"MONTH(D94)","v":1},{"$f":"PROPER(TEXT(D94,\"mmmm\"))","v":"Jaanuar"},{"$f":"INT((TODAY()-D94)/365.25)","v":43},"Transport","autojuht",2300]
[null,"Arnold Merilaid","mees","1966-02-22",2,"Veebruar",58,"Transport","autojuht",1160]
[null,"Ando Nõmmik","mees","1989-02-20",2,"Veebruar",35,"Transport","autojuht",1130]
[null,"Boris Küünemäe","mees","1987-03-13",3,"Märts",37,"Transport","autojuht",1290]
[null,"Aadu Malva","mees","1970-03-06",3,"Märts",54,"Transport","autojuht",1170]
[null,"Kristiina Oks","naine","1970-03-15",3,"Märts",54,"Transport","dispetser",1390]
[null,"Elvi Berk","naine","1983-04-06",4,"Aprill",41,"Transport","dispetser",1575]
[null,"Tiina Rajamäe","naine","1983-05-16",5,"Mai",41,"Transport","dispetser",1200]
[null,"Margus Roosimägi","mees","1983-05-21",5,"Mai",41,"Transport","autojuht",1390]
[null,"Paul Naaber","mees","1977-06-21",6,"Juuni",47,"Transport","autojuht",1260]
[null,"Aarne Oks","mees","1961-07-14",7,"Juuli",63,"Transport","autojuht",2240]
[null,"Ahto Danilov","mees","1979-08-25",8,"August",45,"Transport","autojuht",1200]
[null,"Aadu Pulk","mees","1953-10-16",10,"Oktoober",71,"Transport","valvur",1460]
[null,"Priit Burmeister","mees","1992-12-16",12,"Detsember",31,"Transport","autojuht",1320]
[null,"Jaan Kaasik","mees","1960-12-20",12,"Detsember",63,"Transport","autojuht",1330]
[null,null,null,null,null,null,{"$f":"SUBTOTAL(1,G94:G108)","v":48.266666666666666},"Transport Average",null,{"$f":"SUBTOTAL(1,J94:J108)","v":1427.6666666666667}]
[null,null,null,null,null,null,{"$f":"SUBTOTAL(1,G4:G108)","v":48.777777777777779},"Grand Average",null,{"$f":"SUBTOTAL(1,J4:J108)","v":1294.3939393939395}]